bitfinex/quotes_BTCUSD_20240611
["timestamp","ask_amount","ask_price","bid_price","bid_amount"]
[1718072031586,0.70103903,68552.0,68551.0,0.772449]
[1718072032010,0.69803903,68552.0,68551.0,0.772449]
[1718072032697,0.70503903,68552.0,68551.0,0.772449]
[1718072032974,0.70303903,68552.0,68551.0,0.772449]
[1718072033458,0.70403903,68552.0,68551.0,0.77262444]
[1718072033699,0.70303903,68552.0,68551.0,0.77262444]
[1718072034139,0.69703903,68552.0,68551.0,0.75762444]
[1718072034386,0.69803903,68552.0,68551.0,0.75762444]
[1718072034897,0.5537191,68552.0,68551.0,0.85762444]
[1718072035553,0.5537191,68552.0,68551.0,0.86762444]
[1718072035778,0.5537191,68552.0,68551.0,0.98562444]
[1718072035991,0.5527191,68552.0,68551.0,0.98562444]
[1718072036401,0.5527191,68552.0,68551.0,0.98662444]
[1718072037071,0.5527191,68552.0,68551.0,0.98562444]
[1718072037282,0.5517191,68552.0,68551.0,0.98562444]
[1718072037489,0.5517191,68552.0,68551.0,0.98662444]
[1718072037899,0.5517191,68552.0,68551.0,0.98562444]
[1718072038278,0.5517191,68552.0,68551.0,1.00327523]
[1718072038738,0.5517191,68563.0,68562.0,0.3111]
[1718072038949,0.69603903,68563.0,68562.0,0.41127544]
[1718072039723,0.69603903,68563.0,68562.0,0.4111]
[1718072039928,0.69603903,68563.0,68562.0,0.1]
[1718072040130,0.69603903,68563.0,68551.0,0.06114918]
[1718072040131,0.01,68557.0,68553.0,0.145872]
[1718072040328,0.07215996,68552.0,68551.0,0.01765079]
[1718072040719,0.21647989,68552.0,68548.0,0.009449]
[1718072040921,0.14431993,68551.0,68548.0,0.009449]
[1718072041341,0.01,68549.0,68548.0,0.02704042]
[1718072041542,0.15431993,68549.0,68548.0,0.009449]
[1718072041758,0.14431993,68549.0,68548.0,0.009449]
[1718072042179,0.15431993,68549.0,68548.0,0.009449]
[1718072042389,0.14431993,68549.0,68548.0,0.009449]
[1718072043032,0.15431993,68549.0,68548.0,0.009449]
[1718072043479,0.29863986,68549.0,68548.0,0.010449]
[1718072043681,0.15431993,68549.0,68548.0,0.010449]
[1718072044108,0.15422315,68549.0,68548.0,0.010449]
[1718072044512,0.70594225,68549.0,68548.0,0.010449]
[1718072045408,0.69594225,68549.0,68548.0,0.010449]
[1718072045864,0.70594225,68549.0,68548.0,0.009449]
[1718072046112,0.70594225,68549.0,68548.0,0.010449]
[1718072046320,0.69594225,68549.0,68548.0,0.010449]
[1718072046728,0.70594225,68549.0,68548.0,0.010449]
[1718072049014,0.69594225,68549.0,68548.0,0.009449]
[1718072049388,2.06664247,68549.0,68548.0,0.010449]
[1718072049589,2.16664247,68549.0,68548.0,0.010449]
[1718072049787,2.56892347,68549.0,68548.0,0.010449]
[1718072050026,1.1627,68538.0,68526.0,0.43295979]
[1718072050260,2.00305896,68538.0,68526.0,0.43295979]
[1718072050373,2.00305896,68538.0,68518.0,0.04372144]
[1718072051004,2.00305896,68538.0,68518.0,0.00017544]
[1718072051244,1.80305896,68538.0,68520.0,0.00017544]
[1718072051651,2.00305896,68538.0,68520.0,0.00017544]
[1718072051858,1.80305896,68538.0,68519.0,0.00017544]
[1718072052079,1.80305896,68538.0,68524.0,0.01748231]
[1718072052315,1.80305896,68538.0,68524.0,0.01730687]
[1718072052944,2.00305896,68538.0,68524.0,0.01730687]
[1718072054252,1.80305896,68538.0,68524.0,0.01748231]
[1718072054464,2.00305896,68538.0,68524.0,0.01730687]
[1718072059612,2.00305896,68538.0,68524.0,0.01748231]
[1718072059613,1.70305896,68538.0,68524.0,0.01748231]
[1718072059829,0.69603903,68538.0,68533.0,0.00017544]
[1718072060254,0.69603903,68538.0,68529.0,0.1]
[1718072060255,0.70603903,68538.0,68529.0,0.1]
[1718072060459,0.69603903,68538.0,68531.0,0.00017544]
[1718072060667,0.70603903,68538.0,68531.0,0.00017544]
[1718072060876,0.70603903,68538.0,68529.0,0.1]
[1718072061107,1.57744293,68538.0,68529.0,0.1]
[1718072061324,1.57744293,68538.0,68524.0,0.16323887]
[1718072061325,1.88644293,68538.0,68528.0,0.1]
[1718072061546,1.88644293,68538.0,68524.0,0.16323887]
[1718072061547,0.90603903,68538.0,68525.0,0.1]
[1718072061754,0.70603903,68538.0,68528.0,0.00017544]
[1718072061959,0.70603903,68538.0,68524.0,0.01730687]
[1718072061960,0.70603903,68538.0,68524.0,0.01748231]
[1718072062169,1.18683903,68538.0,68527.0,0.7804]
[1718072062441,1.18683903,68538.0,68528.0,0.1]
[1718072063541,1.18783903,68538.0,68528.0,0.1]
[1718072063765,1.38783903,68538.0,68528.0,0.1]
[1718072063991,1.18783903,68538.0,68528.0,0.1]
[1718072064197,1.18683903,68538.0,68528.0,0.1]
[1718072064446,1.18783903,68538.0,68528.0,0.1]
[1718072064670,1.18883903,68538.0,68528.0,0.1]
[1718072065058,1.18783903,68538.0,68528.0,0.1]
[1718072065327,1.53215896,68538.0,68528.0,0.1]
[1718072065560,1.53315896,68538.0,68525.0,0.1]
[1718072066216,1.33315896,68538.0,68525.0,0.1]
[1718072066423,1.33315896,68538.0,68527.0,0.00017544]
[1718072066635,1.18883903,68538.0,68527.0,0.00017544]
[1718072066868,1.18883903,68538.0,68525.0,0.10017544]
[1718072067077,1.18883903,68538.0,68525.0,0.1]
[1718072067922,1.38883903,68538.0,68525.0,0.1]
[1718072068149,2.19343903,68538.0,68525.0,0.1]
[1718072068368,2.19343903,68538.0,68524.0,0.01730687]
[1718072069295,1.99343903,68538.0,68524.0,0.01730687]
[1718072069507,1.99343903,68538.0,68524.0,0.01748231]
[1718072069726,1.99343903,68538.0,68524.0,0.01730687]
[1718072070429,1.99336903,68538.0,68527.0,0.00017544]
[1718072070645,1.99336903,68538.0,68526.0,0.00017544]
[1718072071068,1.99336903,68538.0,68529.0,0.3074]
[1718072071511,0.69696903,68538.0,68532.0,0.00017544]
[1718072071723,0.69796903,68538.0,68531.0,0.453]
[1718072071939,0.69796903,68538.0,68536.0,0.4943]
[1718072072122,0.69696903,68538.0,68537.0,0.326849]
[1718072072816,0.69696903,68538.0,68537.0,0.39576946]
[1718072073053,0.69596903,68538.0,68537.0,0.39576946]
[1718072073987,0.70596903,68538.0,68537.0,0.07836946]
[1718072074193,0.70696903,68538.0,68537.0,0.07836946]
[1718072074402,0.69696903,68538.0,68537.0,0.07836946]
[1718072074627,0.70596903,68538.0,68537.0,0.07836946]
[1718072074853,0.69596903,68538.0,68537.0,0.07836946]
[1718072075028,0.69596903,68538.0,68537.0,0.57366946]
[1718072075487,0.69596903,68538.0,68537.0,0.07836946]
[1718072076746,0.69596903,68538.0,68537.0,0.0782141]
[1718072077802,0.70596903,68538.0,68537.0,0.0782141]
[1718072079396,0.69596903,68538.0,68537.0,0.0782141]
[1718072080067,0.69596903,68538.0,68537.0,0.07811513]
[1718072083436,0.69596903,68538.0,68537.0,0.009449]
[1718072083566,0.69596903,68538.0,68537.0,0.07814377]
[1718072085569,0.72833724,68538.0,68537.0,0.07837495]
[1718072085770,0.69596903,68538.0,68537.0,0.07837495]
[1718072086327,0.70596903,68538.0,68537.0,0.07837495]
[1718072086541,1.26076903,68538.0,68537.0,0.07837495]
[1718072086745,1.19126903,68538.0,68537.0,0.07837495]
[1718072087691,1.20126903,68538.0,68537.0,0.07837495]
[1718072088125,1.19126903,68538.0,68537.0,0.07837495]
[1718072088323,1.20126903,68538.0,68537.0,0.07837495]
[1718072090195,1.40126903,68538.0,68537.0,0.07837495]
[1718072090401,1.20126903,68538.0,68537.0,0.07837495]
[1718072090597,1.40126903,68538.0,68537.0,0.07837495]
[1718072090825,1.40112383,68538.0,68537.0,0.07837495]
[1718072091251,1.40212383,68538.0,68537.0,0.07837495]
[1718072091832,1.40112383,68538.0,68537.0,0.07837495]
[1718072092030,1.40412383,68538.0,68537.0,0.07837495]
[1718072092232,1.20412383,68538.0,68537.0,0.07837495]
[1718072092599,1.20112383,68538.0,68537.0,0.07837495]
[1718072093092,1.20712383,68538.0,68537.0,0.07837495]
[1718072093708,1.21012383,68538.0,68537.0,0.07837495]
[1718072094947,1.55530376,68538.0,68537.0,0.07837495]
[1718072095153,1.35530376,68538.0,68537.0,0.07837495]
[1718072095355,1.55530376,68538.0,68537.0,0.07837495]
[1718072095784,1.35530376,68538.0,68537.0,0.07837495]
[1718072095991,1.55530376,68538.0,68537.0,0.07837495]
[1718072096190,1.41098383,68538.0,68537.0,0.07837495]
[1718072096331,1.41098383,68538.0,68537.0,0.009449]
[1718072096538,1.41098383,68538.0,68537.0,0.0787698]
[1718072097778,1.48048383,68538.0,68537.0,0.0787698]
[1718072099493,1.88068383,68538.0,68537.0,0.0787698]
[1718072099924,1.88068383,68538.0,68537.0,0.07871725]
[1718072100399,1.94439314,68538.0,68537.0,0.07871725]
[1718072100603,1.88068383,68538.0,68537.0,0.07871725]
[1718072100814,1.88068383,68538.0,68537.0,0.07867077]
[1718072101634,2.15708383,68538.0,68537.0,0.07867077]
[1718072101866,2.35708383,68538.0,68537.0,0.009449]
[1718072102070,2.80404382,68538.0,68537.0,0.009449]
[1718072102274,0.31,68523.0,68522.0,0.009449]
[1718072102484,2.26265983,68523.0,68522.0,0.009449]
[1718072102701,2.077351,68516.0,68515.0,0.009449]
[1718072102911,2.43549086,68516.0,68515.0,0.009449]
[1718072103118,2.65849086,68516.0,68515.0,0.009449]
[1718072103963,2.51417093,68516.0,68515.0,0.009449]
[1718072104181,2.32817093,68516.0,68515.0,0.009449]
[1718072104809,2.34217093,68516.0,68515.0,0.009449]
[1718072105017,3.19807483,68516.0,68515.0,0.009449]
[1718072105229,0.89,68502.0,68501.0,0.009449]
[1718072105441,2.68392123,68502.0,68501.0,0.009449]
[1718072106176,2.78392123,68502.0,68501.0,0.009449]
[1718072106335,2.96032123,68502.0,68501.0,0.009449]
[1718072106719,2.93732123,68502.0,68501.0,0.009449]
[1718072107337,1.73142383,68502.0,68501.0,0.009449]
[1718072107971,1.72342383,68502.0,68501.0,0.009449]
[1718072108231,1.73242383,68502.0,68501.0,0.009449]
[1718072108617,1.63242383,68502.0,68501.0,0.009449]
[1718072108824,1.73242383,68502.0,68501.0,0.009449]
[1718072109344,1.77163077,68502.0,68501.0,0.009449]
[1718072110328,1.85163077,68502.0,68501.0,0.009449]
[1718072110504,2.37401177,68502.0,68501.0,0.009449]
[1718072110752,2.35101177,68502.0,68501.0,0.009449]
[1718072110990,2.25101177,68502.0,68501.0,0.009449]
[1718072111198,2.27401177,68502.0,68501.0,0.009449]
[1718072112949,2.07401177,68502.0,68501.0,0.009449]
[1718072113205,1.21062383,68502.0,68501.0,0.009449]
[1718072113966,0.70282383,68502.0,68501.0,0.009449]
[1718072114126,0.69582383,68502.0,68501.0,0.009449]
[1718072114329,0.70482383,68502.0,68501.0,0.009449]
[1718072114571,0.70482383,68502.0,68501.0,0.00962444]
[1718072114778,0.69582383,68502.0,68501.0,0.009449]
[1718072115845,0.80340621,68502.0,68501.0,0.009449]
[1718072116069,0.80240621,68502.0,68501.0,0.009449]
[1718072116300,0.71182383,68502.0,68501.0,0.009449]
[1718072116503,0.71482383,68502.0,68501.0,0.009449]
[1718072116916,0.72182383,68502.0,68501.0,0.009449]
[1718072117145,0.91282383,68502.0,68501.0,0.009449]
[1718072117653,0.72182383,68502.0,68501.0,0.009449]
[1718072117865,0.79132683,68502.0,68501.0,0.009449]
[1718072118101,0.81482383,68502.0,68501.0,0.009449]
[1718072118301,0.81282383,68502.0,68501.0,0.009449]
[1718072118517,0.81482383,68502.0,68501.0,0.009449]
[1718072118721,1.01482383,68502.0,68501.0,0.009449]
[1718072118927,1.15914376,68502.0,68501.0,0.009449]
[1718072119081,1.93044376,68502.0,68501.0,0.009449]
[1718072119284,1.92144376,68502.0,68501.0,0.009449]
[1718072119947,1.92844376,68502.0,68501.0,0.009449]
[1718072120488,2.22082476,68502.0,68501.0,0.009449]
[1718072120671,2.26082476,68502.0,68501.0,0.009449]
[1718072121238,2.25182476,68502.0,68501.0,0.009449]
[1718072121442,2.26182476,68502.0,68501.0,0.009449]
[1718072123215,2.36182476,68502.0,68501.0,0.009449]
[1718072124527,2.33882476,68502.0,68501.0,0.009449]
[1718072125226,2.55182476,68502.0,68501.0,0.009449]
[1718072125665,2.56482476,68502.0,68501.0,0.009449]
[1718072126326,2.14182476,68502.0,68501.0,0.009449]
[1718072126529,2.33382476,68502.0,68501.0,0.009449]
[1718072126741,2.34482476,68502.0,68501.0,0.009449]
[1718072126945,2.33182476,68502.0,68501.0,0.009449]
[1718072127150,2.32082476,68502.0,68501.0,0.009449]
[1718072127412,2.33482476,68502.0,68501.0,0.009449]
[1718072127978,2.34882476,68502.0,68501.0,0.009449]
[1718072128173,2.33482476,68502.0,68501.0,0.009449]
[1718072128375,2.34882476,68502.0,68501.0,0.009449]
[1718072129561,2.65161404,68502.0,68501.0,0.009449]
[1718072132390,2.67461404,68502.0,68501.0,0.009449]
[1718072133523,2.64661404,68502.0,68501.0,0.009449]
[1718072133803,2.67461404,68502.0,68501.0,0.009449]
[1718072134013,1.977593,68496.0,68495.0,0.00946]
[1718072134221,2.97776217,68496.0,68495.0,0.00946]
[1718072134425,3.12122,68496.0,68495.0,0.00946]
[1718072134632,3.1548672,68496.0,68495.0,0.00946]
[1718072134841,3.1549361,68496.0,68495.0,0.00946]
[1718072135042,3.28980703,68496.0,68495.0,0.00946]
[1718072136082,3.11590703,68496.0,68495.0,0.00946]
[1718072136304,2.57330165,68496.0,68495.0,0.00946]
[1718072136519,2.9212867,68496.0,68495.0,0.00946]
[1718072136732,2.6128906,68496.0,68495.0,0.00946]
[1718072136936,2.9492867,68496.0,68495.0,0.00946]
[1718072137136,2.9212867,68496.0,68495.0,0.00946]
[1718072137346,3.06560663,68496.0,68495.0,0.00946]
[1718072137551,3.09360663,68496.0,68495.0,0.00946]
[1718072137761,2.77675065,68496.0,68495.0,0.00946]
[1718072137923,2.76275065,68496.0,68495.0,0.00946]
[1718072138124,3.07958655,68496.0,68495.0,0.00946]
[1718072138342,3.09358655,68496.0,68495.0,0.00946]
[1718072138975,3.11658655,68496.0,68495.0,0.00946]
[1718072139346,3.31658655,68496.0,68495.0,0.00946]
[1718072139554,3.30258655,68496.0,68495.0,0.00946]
[1718072140041,3.31658655,68496.0,68495.0,0.00946]
[1718072140229,3.30258655,68496.0,68495.0,0.00946]
[1718072140444,3.28858655,68496.0,68495.0,0.00946]
[1718072140854,3.30258655,68496.0,68495.0,0.00946]
[1718072141065,3.31658655,68496.0,68495.0,0.00946]
[1718072141543,3.30258655,68496.0,68495.0,0.00946]
[1718072142401,3.31658655,68496.0,68495.0,0.00946]
[1718072142832,3.30258655,68496.0,68495.0,0.00946]
[1718072143495,3.31658655,68496.0,68495.0,0.00946]
[1718072143724,3.30258655,68496.0,68495.0,0.00946]
[1718072144360,3.28858655,68496.0,68495.0,0.00946]
[1718072144569,3.30258655,68496.0,68495.0,0.00946]
[1718072144774,3.14268655,68496.0,68495.0,0.00946]
[1718072145001,3.30258655,68496.0,68495.0,0.00946]
[1718072145460,0.4173023,68495.0,68494.0,0.009449]
[1718072145672,0.922604,68491.0,68482.0,0.00946]
[1718072145885,1.136021,68483.0,68482.0,0.00946]
[1718072146093,2.61380299,68483.0,68482.0,0.00946]
[1718072146811,2.61380299,68483.0,68449.0,0.146092]
[1718072146812,1.4556,68469.0,68450.0,0.43295979]
[1718072147015,2.29661993,68469.0,68453.0,0.4769]
[1718072147237,2.44267093,68469.0,68453.0,0.4769]
[1718072147451,2.58699086,68469.0,68453.0,0.4769]
[1718072147654,0.01,68449.0,68438.0,0.00017544]
[1718072147864,0.11,68450.0,68447.0,0.4679]
[1718072148142,0.14431993,68448.0,68447.0,0.4679]
[1718072148415,0.15431993,68448.0,68447.0,0.4679]
[1718072148641,0.25414423,68448.0,68447.0,0.4679]
[1718072148866,0.1,68447.0,68446.0,0.331249]
[1718072149142,0.25431993,68447.0,68446.0,0.331249]
[1718072149359,0.32647989,68447.0,68446.0,0.331249]
[1718072149798,0.24431993,68447.0,68446.0,0.331249]
[1718072150278,0.53931078,68447.0,68446.0,0.009449]
[1718072150519,0.32847989,68447.0,68446.0,0.009449]
[1718072150731,0.31847989,68447.0,68446.0,0.009449]
[1718072150956,0.68187989,68447.0,68446.0,0.009449]
[1718072151164,0.84719982,68447.0,68446.0,0.009449]
[1718072151595,0.47079982,68447.0,68446.0,0.009449]
[1718072151800,0.48387989,68447.0,68446.0,0.009449]
[1718072152270,0.68387989,68447.0,68446.0,0.009449]
[1718072152491,0.67987989,68447.0,68446.0,0.009449]
[1718072152740,0.69187989,68447.0,68446.0,0.009449]
[1718072153260,0.49487989,68447.0,68446.0,0.009449]
[1718072153456,0.40352434,68447.0,68446.0,0.009449]
[1718072153658,0.32847989,68447.0,68446.0,0.009449]
[1718072153810,0.33847989,68447.0,68446.0,0.009449]
[1718072154056,0.32847989,68447.0,68446.0,0.009449]
[1718072154261,0.33847989,68447.0,68446.0,0.009449]
[1718072154911,0.48987989,68447.0,68446.0,0.009449]
[1718072155131,0.62419982,68447.0,68446.0,0.009449]
[1718072155409,0.62619982,68447.0,68446.0,0.009449]
[1718072155861,0.63619982,68447.0,68446.0,0.009449]
[1718072156069,0.62419982,68447.0,68446.0,0.009449]
[1718072156504,0.48187989,68447.0,68446.0,0.009449]
[1718072156717,0.49187989,68447.0,68446.0,0.009449]
[1718072156920,0.48187989,68447.0,68446.0,0.009449]
[1718072157128,0.49187989,68447.0,68446.0,0.009449]
[1718072157990,0.26631993,68447.0,68446.0,0.486249]
[1718072158212,0.26631993,68447.0,68446.0,0.009449]
[1718072158213,0.42971993,68447.0,68446.0,0.009449]
[1718072158419,0.60361993,68447.0,68446.0,0.009449]
[1718072158839,0.59161993,68447.0,68446.0,0.009449]
[1718072159268,0.80361993,68447.0,68446.0,0.009449]
[1718072159657,0.60461993,68447.0,68446.0,0.009449]
[1718072159856,0.74893986,68447.0,68446.0,0.009449]
[1718072160085,0.95893986,68447.0,68446.0,0.009449]
[1718072160261,0.94893986,68447.0,68446.0,0.009449]
[1718072160498,0.04845929,68447.0,68446.0,0.009449]
[1718072160632,0.04845929,68447.0,68446.0,0.81192444]
[1718072160633,0.011,68447.0,68446.0,0.81192444]
[1718072160834,0.5,68464.0,68451.0,0.146088]
[1718072161060,0.14431993,68458.0,68451.0,0.146088]
[1718072161869,0.21647989,68456.0,68447.0,0.8023]
[1718072162042,0.15162505,68455.0,68447.0,0.80247544]
[1718072162434,0.14431993,68454.0,68447.0,0.8023]
[1718072162652,0.14431993,68454.0,68447.0,0.80247544]
[1718072162855,0.14431993,68450.0,68447.0,0.8023]
[1718072163706,0.14431993,68450.0,68448.0,0.00017544]
[1718072163946,0.14431993,68450.0,68447.0,0.8023]
[1718072164157,0.14431993,68450.0,68449.0,0.00017544]
[1718072164366,0.14431993,68450.0,68449.0,0.01017544]
[1718072164594,0.1,68467.0,68461.0,0.00017544]
[1718072164781,0.14431993,68466.0,68464.0,0.00017544]
[1718072165177,0.14431993,68466.0,68462.0,0.8023]
[1718072165178,0.14431993,68466.0,68465.0,0.00017544]
[1718072166127,0.14431993,68466.0,68465.0,0.80247544]
[1718072166533,0.07215996,68480.0,68465.0,0.80247544]
[1718072166745,0.14431993,68479.0,68473.0,0.8158]
[1718072167179,0.15431993,68476.0,68473.0,0.8158]
[1718072167419,0.41821993,68474.0,68464.0,0.495]
[1718072167653,0.01,68460.0,68454.0,0.3208]
[1718072167891,0.07215996,68456.0,68454.0,0.3208]
[1718072168092,0.14431993,68455.0,68454.0,0.3208]
[1718072168304,0.14431993,68455.0,68454.0,0.32097544]
[1718072168513,0.07215996,68470.0,68460.0,0.00017544]
[1718072168719,0.14431993,68468.0,68464.0,0.001]
[1718072169156,0.14431993,68468.0,68462.0,0.00017544]
[1718072169613,0.14431993,68468.0,68465.0,0.00017544]
[1718072169827,0.14431993,68468.0,68467.0,0.00017544]
[1718072170027,0.14431993,68468.0,68467.0,0.78847544]
[1718072170237,0.14431993,68468.0,68467.0,0.7883]
[1718072171070,0.15031993,68468.0,68467.0,0.3178]
[1718072171452,0.15431993,68468.0,68467.0,0.3178]
[1718072171677,0.01,68465.0,68464.0,0.001]
[1718072171888,0.22647989,68465.0,68464.0,0.001]
[1718072172387,0.22647989,68465.0,68454.0,0.4723]
[1718072172616,0.22647989,68465.0,68452.0,0.301]
[1718072172617,0.32647989,68458.0,68452.0,0.301]
[1718072172851,0.15431993,68453.0,68447.0,0.4913]
[1718072173095,0.01,68452.0,68447.0,0.4913]
[1718072173316,0.14431993,68450.0,68447.0,0.4913]
[1718072173802,0.14431993,68450.0,68447.0,0.49147544]
[1718072174035,0.14431993,68450.0,68448.0,0.00017544]
[1718072174254,0.14431993,68450.0,68449.0,0.00017544]
[1718072175131,0.14531993,68450.0,68449.0,0.00017544]
[1718072175565,0.14431993,68450.0,68449.0,0.00017544]
[1718072176018,0.14431993,68450.0,68449.0,0.00117544]
[1718072176637,0.14531993,68450.0,68449.0,0.00117544]
[1718072176883,0.14431993,68450.0,68449.0,0.00117544]
[1718072177264,0.14431993,68450.0,68449.0,0.00017544]
[1718072177480,0.14631993,68450.0,68449.0,0.00017544]
[1718072178016,0.14431993,68450.0,68449.0,0.00017544]
[1718072178448,0.14531993,68450.0,68449.0,0.00017544]
[1718072178851,0.14431993,68450.0,68447.0,0.49147544]
[1718072179265,0.14431993,68450.0,68449.0,0.00017544]
[1718072179472,0.14431993,68450.0,68447.0,0.49147544]
[1718072179727,0.1,68471.0,68465.0,0.00017544]
[1718072179927,0.1,68471.0,68466.0,0.00017544]
[1718072179928,0.14431993,68469.0,68466.0,0.00017544]
[1718072180142,0.14431993,68469.0,68465.0,0.00017544]
[1718072181199,0.14431993,68469.0,68468.0,0.00017544]
[1718072181410,0.15831993,68469.0,68468.0,0.00017544]
[1718072182049,0.17231993,68469.0,68468.0,0.00017544]
[1718072182922,0.15831993,68469.0,68468.0,0.00017544]
[1718072183094,0.15831993,68469.0,68467.0,0.146055]
[1718072183294,0.16131993,68469.0,68468.0,0.00017544]
[1718072183574,0.14431993,68469.0,68468.0,0.00017544]
[1718072183942,0.15331993,68469.0,68468.0,0.00017544]
[1718072184291,0.14431993,68469.0,68468.0,0.00017544]
[1718072184756,0.14531993,68469.0,68468.0,0.00017544]
[1718072185565,0.14531993,68469.0,68461.0,0.146068]
[1718072185566,0.15531993,68469.0,68461.0,0.146068]
[1718072185794,0.07215996,68464.0,68461.0,0.146068]
[1718072185965,0.14431993,68463.0,68459.0,0.488]
[1718072186319,0.14431993,68463.0,68462.0,0.00017544]
[1718072187412,0.14431993,68463.0,68462.0,0.14624144]
[1718072187798,0.01,68478.0,68466.0,0.00017544]
[1718072187973,0.08215996,68473.0,68466.0,0.00017544]
[1718072188183,0.15162289,68472.0,68465.0,0.00017544]
[1718072188388,0.01,68465.0,68460.0,0.1]
[1718072188706,0.07215996,68466.0,68456.0,0.3261]
[1718072188707,0.01,68462.0,68456.0,0.3261]
[1718072188867,0.07215996,68457.0,68452.0,0.4843]
[1718072189068,0.14431993,68456.0,68452.0,0.4843]
[1718072189406,0.14431993,68456.0,68448.0,0.146095]
[1718072189407,0.01,68454.0,68448.0,0.146095]
[1718072189614,0.14431993,68453.0,68449.0,0.06643941]
[1718072189825,0.14431993,68453.0,68447.0,0.4843]
[1718072190400,0.14431993,68453.0,68451.0,0.00017544]
[1718072190983,0.14431993,68453.0,68452.0,0.00017544]
[1718072191302,0.1,68471.0,68459.0,0.00017544]
[1718072191491,0.14431993,68468.0,68461.0,0.00017544]
[1718072192182,0.07215996,68466.0,68459.0,0.00017544]
[1718072192474,0.14431993,68465.0,68459.0,0.00017544]
[1718072193435,0.14431993,68465.0,68456.0,0.00017544]
[1718072193436,0.01,68464.0,68456.0,0.00017544]
[1718072193635,0.01,68464.0,68453.0,0.3297]
[1718072193636,0.14431993,68463.0,68459.0,0.00017544]
[1718072194080,0.14431993,68463.0,68458.0,0.00017544]
[1718072194847,0.14431993,68463.0,68461.0,0.00017544]
[1718072195058,0.14931993,68463.0,68456.0,0.00017544]
[1718072195257,0.14931993,68463.0,68458.0,0.00017544]
[1718072195477,0.14431993,68463.0,68458.0,0.00017544]
[1718072196496,0.14431993,68463.0,68462.0,0.00017544]
[1718072196699,0.14431993,68463.0,68461.0,0.47907544]
[1718072196996,0.14731993,68463.0,68462.0,0.00017544]
[1718072197210,0.15631993,68463.0,68462.0,0.00017544]
[1718072197622,0.15631993,68463.0,68462.0,0.33087544]
[1718072197821,0.15331993,68463.0,68462.0,0.33087544]
[1718072198033,0.14431993,68463.0,68462.0,0.33087544]
[1718072198240,0.15131993,68463.0,68462.0,0.33087544]
[1718072198440,0.16231993,68463.0,68462.0,0.33087544]
[1718072198657,0.15531993,68463.0,68462.0,0.33087544]
[1718072198806,0.16331993,68463.0,68462.0,0.33087544]
[1718072199681,0.008,68463.0,68462.0,0.33087544]
[1718072199847,0.008,68463.0,68462.0,0.43087544]
[1718072200318,0.00086,68472.0,68471.0,0.00017544]
[1718072200531,0.14517993,68472.0,68471.0,0.00017544]
[1718072201179,0.14517993,68472.0,68470.0,0.00017544]
[1718072201380,0.21647989,68471.0,68470.0,0.00017544]
[1718072202205,0.21647989,68471.0,68469.0,0.00017544]
[1718072202432,0.21647989,68471.0,68467.0,0.00017544]
[1718072202642,0.21647989,68471.0,68469.0,0.00017544]
[1718072202852,0.21647989,68471.0,68463.0,0.246063]
[1718072202853,0.21647989,68471.0,68470.0,0.00017544]
[1718072204134,0.22247989,68471.0,68470.0,0.00017544]
[1718072204312,0.22547989,68471.0,68470.0,0.00017544]
[1718072204514,0.22547989,68471.0,68463.0,0.246063]
[1718072204515,0.22547989,68471.0,68469.0,0.00017544]
[1718072205063,0.15331993,68471.0,68470.0,0.00017544]
[1718072205671,0.15031993,68471.0,68470.0,0.00017544]
[1718072205995,0.14431993,68471.0,68470.0,0.00017544]
[1718072206406,0.14831993,68471.0,68470.0,0.00017544]
[1718072206981,0.14431993,68471.0,68470.0,0.00017544]
[1718072207189,0.15231993,68471.0,68470.0,0.00017544]
[1718072207387,0.15031993,68471.0,68470.0,0.00017544]
[1718072207790,0.15331993,68471.0,68470.0,0.00017544]
[1718072209065,0.15331993,68471.0,68470.0,0.46827544]
[1718072209407,0.15331993,68471.0,68470.0,0.79097544]
[1718072211362,0.15331993,68471.0,68470.0,0.7908]
[1718072212230,0.15331993,68471.0,68470.0,0.79097544]
[1718072213749,0.15331993,68471.0,68470.0,0.7908]
[1718072214081,0.15331993,68471.0,68470.0,0.79097544]
[1718072214738,0.009,68471.0,68470.0,0.79097544]
[1718072214969,0.009,68471.0,68470.0,1.03702444]
[1718072215173,0.009,68471.0,68470.0,1.04702444]
[1718072216126,0.003,68471.0,68470.0,1.03702444]
[1718072216720,0.003,68471.0,68470.0,1.04702444]
[1718072216887,0.00086,68472.0,68470.0,1.04702444]
[1718072216888,0.00086,68472.0,68471.0,0.15622244]
[1718072217089,0.00086,68472.0,68471.0,0.24622244]
[1718072217292,0.00086,68472.0,68471.0,0.25622244]
[1718072217513,0.00086,68472.0,68471.0,0.24622244]
[1718072217918,0.00086,68472.0,68471.0,0.25622244]
[1718072219156,0.00086,68472.0,68471.0,1.04352244]
[1718072219900,0.00086,68472.0,68471.0,1.14641152]
[1718072220307,0.00086,68472.0,68471.0,1.08093296]
[1718072221094,0.00086,68472.0,68471.0,1.69247596]
[1718072221298,0.00086,68472.0,68471.0,1.5361537]
[1718072221503,0.00086,68472.0,68471.0,1.3703297]
[1718072221915,0.00086,68472.0,68471.0,1.5703297]
[1718072222099,0.00086,68472.0,68471.0,1.80674363]
[1718072222332,0.00086,68472.0,68471.0,1.80672035]
[1718072222545,0.00086,68472.0,68471.0,1.71943889]
[1718072222752,0.00086,68472.0,68471.0,1.82856609]
[1718072223154,0.00086,68472.0,68471.0,1.91943889]
[1718072223375,0.00086,68472.0,68471.0,2.0067033]
[1718072223530,0.00086,68472.0,68471.0,1.8067033]
[1718072223936,0.00086,68472.0,68471.0,1.80670152]
[1718072224381,0.00086,68472.0,68471.0,1.98060152]
[1718072224611,0.00086,68472.0,68471.0,2.18060152]
[1718072224848,0.00086,68472.0,68471.0,2.09333889]
[1718072225070,0.00086,68472.0,68471.0,1.89433889]
[1718072225494,0.00086,68472.0,68471.0,1.89333889]
[1718072225702,0.00086,68472.0,68471.0,2.09333889]
[1718072225929,0.00086,68472.0,68471.0,2.09433889]
[1718072226156,0.00086,68472.0,68471.0,2.20336463]
[1718072226563,0.00086,68472.0,68471.0,2.00336463]
[1718072226764,0.00086,68472.0,68471.0,2.23011294]
[1718072227328,0.00086,68472.0,68471.0,1.71189301]
[1718072227575,0.00086,68472.0,68471.0,1.46617769]
[1718072227831,0.00086,68472.0,68471.0,1.64007769]
[1718072228243,0.00086,68472.0,68471.0,1.64007102]
[1718072228451,0.00086,68472.0,68471.0,1.63907102]
[1718072228690,0.00086,68472.0,68471.0,1.64007102]
[1718072228928,0.5515039,68487.0,68486.0,0.15619044]